bitfinex/quotes_ETHUSD_20250824
["timestamp","ask_amount","ask_price","bid_price","bid_amount"]
[1756077912193,18.7194971,4806.7,4806.4,0.001]
[1756077913916,15.4321802,4806.7,4806.4,0.001]
[1756077914120,19.0411802,4806.7,4806.4,0.001]
[1756077914326,18.924295,4806.7,4806.4,0.001]
[1756077914827,19.028295,4806.7,4806.4,0.001]
[1756077915436,6.99151596,4806.5,4806.4,0.001]
[1756077915721,13.064697,4806.5,4806.4,0.001]
[1756077915902,13.526997,4806.5,4806.4,0.001]
[1756077916227,13.33218671,4806.5,4806.4,0.001]
[1756077916730,12.86988671,4806.5,4806.4,0.001]
[1756077917123,13.06463074,4806.5,4806.4,0.001]
[1756077917322,13.52693074,4806.5,4806.4,0.001]
[1756077917501,20.65493073,4806.5,4806.4,0.001]
[1756077918236,5.74055925,4806.4,4806.3,0.001]
[1756077918427,11.60365964,4806.4,4806.3,0.001]
[1756077918922,1.911,4806.2,4805.6,0.001]
[1756077919125,3.99173241,4806.0,4805.6,0.001]
[1756077919325,9.96162566,4805.7,4805.6,1e-08]
[1756077919511,19.21649319,4805.7,4805.6,1e-08]
[1756077919712,20.75056882,4805.7,4805.6,1e-08]
[1756077919908,6.99233871,4804.6,4804.5,0.001]
[1756077920233,13.23625034,4804.6,4804.5,0.001]
[1756077920402,13.69855034,4804.6,4804.5,0.001]
[1756077920811,14.82000698,4804.6,4804.5,0.001]
[1756077921010,16.32188486,4804.6,4804.5,0.001]
[1756077921435,15.20042822,4804.6,4804.5,0.001]
[1756077921638,15.35459682,4804.6,4804.5,0.001]
[1756077921810,16.47605346,4804.6,4804.5,0.001]
[1756077922315,15.35459682,4804.6,4804.5,0.001]
[1756077923835,15.6804147,4804.6,4804.5,0.001]
[1756077924038,16.80187134,4804.6,4804.5,0.001]
[1756077924256,23.92887133,4804.6,4804.5,0.001]
[1756077925637,20.31987133,4804.6,4804.5,0.001]
[1756077925835,23.17217133,4804.6,4804.5,0.001]
[1756077926362,22.05071469,4804.6,4804.5,0.001]
[1756077926538,22.80041469,4804.6,4804.5,0.001]
[1756077926862,22.33811469,4804.6,4804.5,0.001]
[1756077927251,22.04971469,4804.6,4804.5,0.001]
[1756077928342,19.19841469,4804.6,4804.5,0.001]
[1756077928545,18.2532014,4804.6,4804.5,0.001]
[1756077928733,19.26650129,4804.6,4804.5,0.0716]
[1756077929246,14.92086269,4804.6,4804.5,0.0716]
[1756077929434,16.20371299,4804.6,4804.5,0.0716]
[1756077929635,12.83809206,4804.6,4804.5,0.0716]
[1756077929851,15.87789511,4804.6,4804.5,0.0716]
[1756077930484,5.75089512,4804.6,4804.5,0.0716]
[1756077930763,5.75089512,4804.6,4804.5,0.1157]
[1756077930943,5.303,4804.6,4804.5,0.1157]
[1756077931340,5.75037082,4804.6,4804.5,0.1157]
[1756077931551,1.704,4804.6,4804.5,0.1157]
[1756077931758,5.302,4804.6,4804.5,0.1157]
[1756077932752,5.301,4804.6,4804.5,0.33942044]
[1756077932949,5.301,4804.6,4804.5,0.1157]
[1756077935581,1.6,4804.6,4804.5,2.19708203]
[1756077935767,0.104,4804.7,4804.6,2.08133871]
[1756077935973,3.697,4804.7,4804.6,2.19603871]
[1756077936166,3.697,4804.7,4804.6,2.62388078]
[1756077936681,1.601,4805.4,4804.6,2.62388078]
[1756077936682,1.601,4805.4,4805.1,2.0810887]
[1756077936884,3.592,4805.3,4805.2,0.0441]
[1756077937259,0.104,4805.3,4805.2,2.19577883]
[1756077937465,3.695,4805.3,4805.2,2.19577883]
[1756077937660,3.695,4805.3,4805.2,2.6234756]
[1756077937885,0.104,4805.3,4805.2,2.6234756]
[1756077938488,3.592,4805.5,4805.4,2.08099221]
[1756077938654,3.592,4805.5,4805.4,2.19569221]
[1756077938850,0.104,4805.8,4805.7,2.0808623]
[1756077939088,3.591,4805.9,4805.7,2.57911143]
[1756077939250,3.591,4805.9,4805.8,2.08081901]
[1756077939456,3.591,4805.9,4805.8,2.19551901]
[1756077941388,3.591,4805.9,4805.8,0.0706]
[1756077941569,3.591,4805.9,4805.8,2.15141901]
[1756077942177,1.705,4806.1,4805.8,0.0706]
[1756077942381,3.588,4805.9,4805.8,2.15141623]
[1756077944071,1.705,4806.1,4805.8,2.15141623]
[1756077944072,1.705,4806.1,4806.0,2.08073241]
[1756077944262,5.293,4806.1,4806.0,2.15133241]
[1756077945086,1.705,4806.1,4806.0,2.15133241]
[1756077945390,0.104,4806.1,4806.0,2.19543241]
[1756077945573,0.104,4806.1,4806.0,2.67621965]
[1756077946176,1.6,4806.8,4806.4,2.0805452]
[1756077946496,0.104,4806.5,4806.4,2.0805452]
[1756077946793,0.104,4806.5,4806.4,2.1511452]
[1756077946983,3.691,4806.5,4806.4,0.0706]
[1756077947496,3.691,4806.5,4806.4,2.15115925]
[1756077947795,3.691,4806.5,4806.4,0.0706]
[1756077948008,3.691,4806.5,4806.4,2.15115925]
[1756077948201,3.691,4806.5,4806.4,2.57874762]
[1756077948202,0.104,4806.5,4806.4,2.57874762]
[1756077948491,3.691,4806.5,4806.4,2.57874762]
[1756077949279,0.104,4806.5,4806.4,2.57874762]
[1756077949770,5.187,4806.8,4806.7,2.0804294]
[1756077950096,5.291,4806.8,4806.7,2.1510294]
[1756077950898,1.704,4806.8,4806.7,2.61694261]
[1756077951102,5.187,4806.8,4806.7,2.61694261]
[1756077951398,3.589,4806.9,4806.8,2.08038611]
[1756077951601,3.589,4806.9,4806.8,2.15098611]
[1756077951774,3.589,4806.9,4806.8,3.22695322]
[1756077953184,0.002,4806.9,4806.8,3.22695322]
[1756077956397,0.002,4806.9,4806.8,1.14656711]
[1756077956736,4.3746,4806.9,4806.5,2.0805148]
[1756077957031,0.5788,4806.8,4806.2,2.08060515]
[1756077957188,0.3118,4806.3,4805.9,0.104]
[1756077957394,0.104,4806.2,4805.6,3.586]
[1756077957613,0.4748,4806.1,4805.6,2.08090561]
[1756077957831,0.4748,4806.0,4805.5,6.0623424]
[1756077957990,0.104,4806.2,4805.7,2.08085573]
[1756077958331,0.4748,4805.9,4805.6,2.08090561]
[1756077958822,0.4748,4805.9,4805.7,2.080861]
[1756077959035,0.4748,4805.8,4805.5,6.0623424]
[1756077959198,0.4748,4805.8,4805.5,8.03925434]
[1756077959398,0.4748,4805.8,4805.6,2.08090449]
[1756077959625,0.104,4806.3,4805.7,0.0706]
[1756077959826,3.69,4806.3,4806.0,8.0390463]
[1756077959990,0.104,4806.3,4806.2,2.15124583]
[1756077960195,1.704,4806.5,4806.3,2.08058706]
[1756077960495,3.586,4806.7,4806.6,2.08044158]
[1756077960822,0.106,4806.9,4806.6,0.0706]
[1756077961006,0.002,4806.9,4806.8,2.08038611]
[1756077961204,0.002,4806.9,4806.8,2.15098611]
[1756077961603,0.002,4806.9,4806.8,2.19508611]
[1756077961837,0.002,4806.9,4806.8,2.29908611]
[1756077962343,0.002,4806.9,4806.8,8.88508611]
[1756077962554,0.002,4806.9,4806.8,10.04297098]
[1756077963208,0.002,4806.9,4806.8,10.12634298]
[1756077963437,0.002,4806.9,4806.8,10.08224298]
[1756077964447,0.002,4806.9,4806.8,7.08224298]
[1756077964741,0.002,4806.9,4806.8,6.99887098]
[1756077964922,0.002,4806.9,4806.8,10.08224998]
[1756077965745,0.002,4806.9,4806.8,7.08224998]
[1756077966316,0.7886,4806.9,4806.8,0.187379]
[1756077966510,0.7886,4806.9,4806.8,0.104]
[1756077966715,0.7886,4806.9,4806.6,3.0]
[1756077967018,0.92281252,4806.8,4805.9,2.08077571]
[1756077967244,0.92281252,4806.7,4806.1,3.104]
[1756077967446,0.002,4806.9,4806.1,3.0]
[1756077967447,0.3118,4806.2,4806.1,3.0]
[1756077967625,0.3118,4806.2,4805.9,0.104]
[1756077967930,0.44822835,4806.1,4805.9,2.18475026]
[1756077968138,0.7866,4806.0,4805.9,0.104]
[1756077968335,1.23488538,4806.0,4805.9,0.104]
[1756077968953,1.33888538,4806.0,4805.2,3.689]
[1756077969118,0.44828538,4805.9,4805.3,5.08103552]
[1756077969330,0.3118,4805.4,4805.2,0.104]
[1756077969536,0.4748,4805.3,4804.9,5.08120808]
[1756077969841,0.4748,4805.3,4804.9,5.6331533]
[1756077970428,0.104,4805.4,4804.9,3.55194522]
[1756077970759,0.5587931,4806.1,4804.9,3.55194522]
[1756077970760,0.104,4805.8,4805.4,2.0809833]
[1756077970956,0.44838634,4805.7,4805.5,3.0]
[1756077971162,0.104,4805.8,4805.5,3.0]
[1756077971163,0.44838634,4805.6,4805.5,3.0]
[1756077972331,1.23498634,4805.6,4805.4,3.585]
[1756077972635,0.92318634,4805.5,4805.4,3.585]
[1756077972826,1.22028634,4805.5,4805.4,3.585]
[1756077973027,1.22028634,4805.5,4805.2,0.104]
[1756077973271,0.44838634,4805.4,4805.2,0.104]
[1756077973476,0.44838634,4805.3,4805.2,0.104]
[1756077973689,0.74548634,4805.3,4805.2,0.104]
[1756077973845,0.74548634,4805.3,4804.5,0.0138]
[1756077973846,1.20788634,4805.3,4804.5,0.0138]
[1756077974037,1.01478634,4805.2,4804.5,0.0138]
[1756077974238,0.2971,4804.9,4804.6,2.08133061]
[1756077974433,0.2971,4804.9,4804.8,0.22111306]
[1756077974434,0.44838634,4804.9,4804.8,0.22111306]
[1756077974685,0.44838634,4804.9,4804.8,2.37296514]
[1756077974971,0.44838634,4804.9,4804.8,8.95796514]
[1756077975338,0.104,4805.4,4804.9,5.08120474]
[1756077975533,0.44825765,4805.3,4804.9,5.08120474]
[1756077975738,0.44825765,4805.2,4804.9,5.08120474]
[1756077975939,0.5664,4805.4,4804.9,5.08120474]
[1756077976140,0.44823944,4805.3,4804.9,5.08120474]
[1756077976349,0.44823944,4805.2,4804.9,4.10864653]
[1756077976547,0.5664,4805.4,4804.9,4.10864653]
[1756077976775,0.44817591,4805.3,4804.9,6.18985116]
[1756077976979,0.104,4805.7,4805.1,0.104]
[1756077977192,0.44815866,4805.6,4805.3,5.0809979]
[1756077977481,0.44815866,4805.5,4805.3,3.22508674]
[1756077977658,0.4624,4805.6,4805.3,3.22508674]
[1756077977995,0.44809913,4805.5,4805.3,3.22508674]
[1756077978277,0.7595,4805.4,4805.3,3.0]
[1756077982548,0.7595,4805.4,4805.1,3.689]
[1756077982752,0.2971,4805.4,4805.2,3.0]
[1756077982951,0.4624,4805.3,4805.2,3.0]
[1756077983174,0.7595,4805.3,4805.2,3.0]
[1756077984071,0.5664,4805.7,4805.2,3.0706]
[1756077984274,0.104,4805.7,4805.3,3.585]
[1756077984484,0.002,4805.9,4805.6,0.0706]
[1756077984788,0.002,4805.9,4805.4,3.104]
[1756077984984,0.002,4805.9,4805.8,0.0706]
[1756077985609,0.002,4805.9,4805.7,3.689]
[1756077986556,0.2971,4805.8,4805.7,3.689]
[1756077986969,0.4644,4805.9,4805.7,3.689]
[1756077987896,0.002,4805.9,4805.7,3.689]
[1756077989201,0.002,4805.9,4805.8,0.0706]
[1756077989697,0.002,4805.9,4805.7,4.3429888]
[1756077990265,0.4644,4805.9,4805.7,4.3429888]
[1756077991280,0.4644,4805.9,4805.7,10.30340735]
[1756077992276,0.002,4805.9,4805.7,10.30340735]
[1756077993800,0.4644,4805.9,4805.7,10.30340735]
[1756077994510,0.2971,4805.8,4805.7,10.30340735]
[1756077995166,0.4644,4805.9,4805.7,10.30340735]
[1756077996394,0.44950032,4805.8,4805.7,10.30340735]
[1756077996603,0.4644,4805.9,4805.7,10.30340735]
[1756077997282,0.44966722,4805.8,4805.7,10.30340735]
[1756077998271,0.44966722,4805.8,4805.7,9.64941855]
[1756077998480,1.20916722,4805.8,4805.7,3.585]
[1756077998797,1.31316722,4805.8,4805.1,0.104]
[1756077999002,0.91206722,4805.7,4805.1,0.104]
[1756077999166,0.2971,4805.2,4805.1,0.104]
[1756077999376,0.2971,4805.2,4804.8,3.584]
[1756077999377,0.2971,4805.2,4804.9,3.0]
[1756077999814,0.4624,4805.1,4804.9,3.0]
[1756078000012,0.2971,4805.0,4804.9,3.0]
[1756078000311,0.7595,4805.0,4804.9,3.0]
[1756078001282,0.7595,4805.0,4804.8,0.001]
[1756078001482,0.91215345,4804.9,4804.5,0.0138]
[1756078001705,2.48243871,4804.6,4804.5,0.0138]
[1756078001909,2.93219216,4804.6,4804.5,0.0138]
[1756078002140,1.31325345,4804.6,4803.5,0.001]
[1756078002343,2.64373279,4804.2,4803.5,0.001]
[1756078002482,0.2971,4804.0,4803.5,0.001]
[1756078002684,3.69196712,4804.0,4803.5,0.001]
[1756078002927,4.14696712,4804.0,4803.5,0.001]
[1756078003330,1.50315967,4804.0,4803.5,0.001]
[1756078005916,7.16675833,4804.0,4803.5,0.001]
[1756078007338,7.72636561,4804.0,4803.5,0.001]
[1756078008043,7.16675833,4804.0,4803.5,0.001]
[1756078008244,2.06277773,4804.0,4803.5,0.001]
[1756078008543,7.16775833,4804.0,4803.5,0.001]
[1756078008722,8.38704674,4804.0,4803.5,0.001]
[1756078009111,7.82775833,4804.0,4803.5,0.001]
[1756078009315,8.38701808,4804.0,4803.5,0.001]
[1756078009547,7.82775833,4804.0,4803.5,0.001]
[1756078010519,8.38701808,4804.0,4803.5,0.001]
[1756078012334,7.27175833,4804.0,4803.5,0.001]
[1756078012936,7.83101808,4804.0,4803.5,0.001]
[1756078013232,7.27175833,4804.0,4803.5,0.001]
[1756078013404,7.83101808,4804.0,4803.5,0.001]
[1756078013936,8.15684113,4804.0,4803.5,0.001]
[1756078014139,8.81684113,4804.0,4803.5,0.001]
[1756078014446,8.25758138,4804.0,4803.5,0.001]
[1756078015912,15.38458137,4804.0,4803.5,0.001]
[1756078016728,16.63558137,4804.0,4803.5,0.001]
[1756078017723,16.65158137,4804.0,4803.5,0.001]
[1756078018455,17.40119309,4804.0,4803.5,0.001]
[1756078019410,16.65158137,4804.0,4803.5,0.001]
[1756078020344,16.32575832,4804.0,4803.5,0.001]
[1756078022244,17.44721496,4804.0,4803.5,0.001]
[1756078022445,7.99805966,4804.0,4803.5,0.001]
[1756078022644,13.66165832,4804.0,4803.5,0.001]
[1756078022949,11.27875344,4804.0,4803.9,0.1609]
[1756078023527,13.3603521,4804.0,4803.9,0.001]
[1756078024442,11.27875344,4804.0,4803.9,0.001]
[1756078025253,13.3603521,4804.0,4803.9,0.001]
[1756078025753,13.68616154,4804.0,4803.9,0.001]
[1756078026056,11.60456288,4804.0,4803.9,0.001]
[1756078026359,13.68616154,4804.0,4803.9,0.001]
[1756078026536,11.60456288,4804.0,4803.9,0.001]
[1756078026735,12.85556288,4804.0,4803.9,0.001]
[1756078026935,13.68616154,4804.0,4803.9,0.001]
[1756078027137,14.43044426,4804.0,4803.9,0.001]
[1756078027353,13.68616154,4804.0,4803.9,0.001]
[1756078027558,10.10416154,4804.0,4803.9,0.001]
[1756078027758,13.68616154,4804.0,4803.9,0.001]
[1756078027957,10.85051948,4804.0,4803.9,0.001]
[1756078028145,13.68616154,4804.0,4803.9,0.001]
[1756078028347,11.60456288,4804.0,4803.9,0.001]
[1756078028860,8.02256288,4804.0,4803.9,0.001]
[1756078029049,13.68616154,4804.0,4803.9,0.001]
[1756078029556,14.80761818,4804.0,4803.9,0.001]
[1756078030352,13.3603521,4804.0,4803.9,0.001]
[1756078030764,11.27875344,4804.0,4803.9,0.001]
[1756078030964,13.3603521,4804.0,4803.9,0.001]
[1756078031165,13.55548488,4804.0,4803.9,0.001]
[1756078031458,13.55548488,4804.0,4803.5,0.001]
[1756078031759,1.22821225,4803.6,4803.5,0.001]
[1756078031967,5.2589657,4803.6,4803.5,0.1609]
[1756078033460,6.55428347,4803.6,4803.5,0.001]
[1756078033850,12.88705547,4803.6,4803.5,0.001]
[1756078034050,5.08181534,4803.5,4803.4,0.001]
[1756078034363,8.00263726,4803.5,4803.4,0.001]
[1756078034570,9.41329132,4803.5,4803.4,0.001]
[1756078035067,7.91340876,4803.5,4803.4,0.001]
[1756078035261,9.16440876,4803.5,4803.4,0.001]
[1756078037698,3.33303206,4803.0,4802.9,0.001]
[1756078037905,3.33320547,4802.6,4802.5,0.001]
[1756078038208,11.74099522,4802.6,4802.5,0.001]
[1756078038500,3.9933789,4802.2,4801.3,0.001]
[1756078038796,8.62400145,4802.2,4801.3,0.001]
[1756078038960,9.09812216,4802.2,4801.3,0.001]
[1756078039165,10.09010159,4802.2,4801.3,0.001]
[1756078039561,10.09009312,4802.2,4801.3,0.001]
[1756078040073,3.333509,4801.9,4801.3,0.001]
[1756078040410,9.46094379,4801.9,4801.3,0.001]
[1756078040588,9.56494379,4801.9,4801.3,0.001]
[1756078040758,11.44991466,4801.9,4801.3,0.001]
[1756078040963,22.23691465,4801.9,4801.3,0.001]
[1756078041163,22.35379276,4801.9,4801.8,1e-08]
[1756078041399,22.23691465,4801.9,4801.8,1e-08]
[1756078041558,18.65691465,4801.9,4801.8,1e-08]
[1756078041759,17.6815364,4801.9,4801.8,1e-08]
[1756078041991,21.2615364,4801.9,4801.8,1e-08]
[1756078042310,23.01341746,4801.9,4801.8,1e-08]
[1756078042771,21.14476075,4801.9,4801.8,1e-08]
[1756078043296,17.56476075,4801.9,4801.8,1e-08]
[1756078043481,19.43072658,4801.9,4801.8,1e-08]
[1756078043796,24.58775279,4801.9,4801.8,1e-08]
[1756078044000,2.08324653,4800.2,4800.1,0.04]
[1756078044306,8.83286883,4800.2,4800.1,0.04]
[1756078044530,8.11959998,4800.2,4800.1,0.04]
[1756078044906,8.59389998,4800.2,4800.1,0.04]
[1756078045632,6.51065345,4800.2,4800.1,0.04]
[1756078045932,5.73475345,4800.2,4800.1,0.04]
[1756078046627,10.50263288,4800.2,4799.1,0.04]
[1756078046930,0.104,4799.2,4799.1,0.04]
[1756078047135,5.73575345,4799.2,4799.1,0.04]
[1756078047346,6.74859569,4799.2,4799.1,0.2031]
[1756078048500,6.74859569,4799.2,4799.1,0.04]
[1756078048688,10.52449569,4799.2,4799.1,0.04]
[1756078049023,10.70108044,4799.2,4799.1,0.04]
[1756078049224,13.44476105,4799.2,4799.1,0.04]
[1756078049586,14.93759127,4799.2,4799.1,0.04]
[1756078049786,0.66,4799.0,4798.1,0.04]
[1756078050018,1.1155707,4798.4,4798.1,0.04]
[1756078050227,3.0,4798.2,4798.1,0.04]
[1756078050388,7.02975345,4798.2,4798.1,0.2031]
[1756078051727,3.44975345,4798.2,4798.1,0.2041]
[1756078051927,7.03075345,4798.2,4798.1,0.2041]
[1756078052341,7.02636378,4798.2,4798.1,0.2041]
[1756078052917,0.44536378,4798.2,4798.1,0.2041]
[1756078053120,4.02536378,4798.2,4798.1,0.2041]
[1756078053317,4.76756841,4798.2,4798.1,0.2041]
[1756078053647,4.02536378,4798.2,4798.1,0.306]
[1756078053809,1.00187049,4798.2,4798.1,0.306]
[1756078054138,4.58187049,4798.2,4798.1,0.306]
[1756078054305,1.00179822,4798.2,4798.1,0.306]
[1756078054505,4.58279822,4798.2,4798.1,0.306]
[1756078054714,4.02636378,4798.2,4798.1,0.306]
[1756078055218,4.02636378,4798.2,4798.1,0.2041]
[1756078055953,4.58278159,4798.2,4798.1,0.2041]
[1756078056305,4.58281831,4798.2,4798.1,0.2041]
[1756078056742,4.58281831,4798.2,4798.1,0.306]
[1756078056944,4.58281831,4798.2,4798.1,0.2041]
[1756078057238,4.13036378,4798.2,4798.1,0.2041]
[1756078057541,4.68689664,4798.2,4798.1,0.2041]
[1756078057843,4.13036378,4798.2,4798.1,0.2041]
[1756078058016,0.54936378,4798.2,4798.1,1.141819]
[1756078058217,4.02636378,4798.2,4798.1,3.22597731]
[1756078059110,4.02636378,4798.2,4798.1,1.141819]
[1756078059310,4.02636378,4798.2,4798.1,0.306]
[1756078060446,4.02636378,4798.2,4798.1,2.39015831]
[1756078061424,4.02636378,4798.2,4798.1,0.2041]
[1756078061618,4.02636378,4798.2,4798.1,2.28825831]
[1756078062144,4.02636378,4798.2,4798.1,2.39015831]
[1756078062321,0.44536378,4798.2,4798.1,2.39015831]
[1756078062517,4.02636378,4798.2,4798.1,3.03540603]
[1756078063660,0.74220463,4798.9,4798.1,3.95124772]
[1756078063861,3.58,4799.0,4798.6,5.96790929]
[1756078064056,3.58,4799.0,4798.9,0.1631]
[1756078064256,3.58,4799.0,4798.9,3.29738404]
[1756078064442,3.58,4799.0,4798.9,1.21357317]
[1756078064758,3.58,4799.0,4798.9,3.29738404]
[1756078064958,0.74220463,4799.5,4799.1,2.08372403]
[1756078065166,0.104,4799.6,4799.4,2.24666735]
[1756078065338,0.104,4799.6,4799.5,1.02983007]
[1756078065524,3.684,4799.6,4799.5,1.02983007]
[1756078065724,3.684,4799.6,4799.5,1.19293007]
[1756078066339,4.42820463,4799.6,4799.5,1.19293007]
[1756078066727,0.84820463,4799.6,4799.5,3.27648043]
[1756078066921,0.002,4799.6,4799.5,3.27648043]
[1756078067149,3.582,4799.6,4799.5,3.27648043]
[1756078067348,0.002,4799.6,4799.5,3.37838043]
[1756078067626,3.58,4799.9,4799.6,2.08350695]
[1756078067825,0.002,4800.1,4800.0,2.08333333]
[1756078068026,0.74220463,4800.4,4800.1,2.08328993]
[1756078068282,0.74220463,4800.8,4800.7,2.08302955]
[1756078068439,0.74220463,4800.8,4800.7,2.24612955]
[1756078068625,0.74220463,4800.8,4800.7,3.28624507]
[1756078069027,4.32220463,4800.8,4800.7,3.28624507]
[1756078069322,4.32220463,4800.8,4800.7,1.20321552]
[1756078069323,3.579,4800.8,4800.7,1.20321552]
[1756078069526,4.32120463,4800.8,4800.7,1.20321552]
[1756078070326,0.74220463,4800.9,4800.7,1.20321552]
[1756078070525,0.104,4801.0,4800.8,5.96790929]
[1756078070852,3.579,4800.9,4800.8,5.96790929]
[1756078071052,4.32563045,4800.9,4800.8,5.96790929]
[1756078071448,3.579,4800.9,4800.7,1.04011552]
[1756078071651,4.32563045,4800.9,4800.7,1.04011552]
[1756078072031,0.7517,4800.8,4800.7,1.04011552]
[1756078072335,0.7517,4800.8,4800.5,2.08310991]
[1756078072662,0.74663045,4801.0,4800.7,0.1631]
[1756078072865,3.579,4800.9,4800.8,15.02387472]
[1756078073176,3.579,4800.9,4800.8,15.18697472]
[1756078073532,3.579,4800.9,4800.8,13.10398856]
[1756078073736,0.104,4801.2,4800.8,13.10398856]
[1756078074043,0.5455,4801.2,4800.8,12.94088856]
[1756078074267,3.578,4801.1,4800.8,12.94088856]
[1756078074668,3.578,4801.0,4800.8,12.94088856]
[1756078075054,0.104,4801.2,4800.8,12.94088856]
[1756078075289,3.578,4801.1,4800.8,12.94088856]
[1756078075662,0.4472082,4801.0,4800.8,12.94088856]
[1756078075982,0.4472082,4800.9,4800.8,12.94088856]
[1756078076167,0.4472082,4800.9,4800.8,13.10398856]
[1756078079376,0.4472082,4800.9,4800.8,12.94088856]
[1756078079751,0.4472082,4800.9,4800.8,13.10398856]
[1756078079994,0.4472082,4800.9,4800.8,12.94088856]
[1756078080379,0.4472082,4800.9,4799.7,13.49748409]
[1756078080380,1.1989082,4800.9,4799.7,13.49748409]
[1756078080552,1.1989082,4800.9,4799.0,1.602]
[1756078080553,0.104,4800.5,4799.0,0.626193]
[1756078080890,0.3102,4799.1,4798.1,0.145]
[1756078081090,0.104,4798.6,4798.1,2.12515002]
[1756078081304,3.681,4798.8,4798.5,0.1631]
[1756078081470,3.577,4798.9,4798.6,2.08390358]
[1756078081658,3.577,4798.9,4798.8,0.1631]
[1756078082174,4.02437571,4798.9,4798.8,0.1631]
[1756078082701,4.02437571,4798.9,4798.7,1.7271929]
[1756078082871,3.577,4798.9,4798.8,2.08385429]
[1756078083072,4.02437621,4798.9,4798.7,3.81108732]
[1756078083281,3.577,4798.9,4798.7,3.81108732]
[1756078083502,3.577,4798.9,4798.7,1.7271929]
[1756078083674,3.577,4798.9,4798.8,0.5087121]
[1756078083872,4.02449819,4798.9,4798.8,0.5087121]
[1756078084069,4.02449819,4798.9,4798.8,0.3456121]
[1756078084404,4.33480991,4798.9,4798.6,0.104]
[1756078084568,0.4415,4798.8,4798.6,0.104]
[1756078084901,3.577,4798.9,4798.6,0.104]
[1756078085201,3.577,4798.9,4798.7,0.1631]
[1756078085961,3.576,4798.9,4798.8,2.08385429]
[1756078086175,0.12,4799.5,4799.3,2.08361883]
[1756078086381,4.02383527,4799.4,4799.3,2.08361883]
[1756078086678,4.02383527,4799.4,4799.3,2.24671883]
[1756078087300,4.02383527,4799.4,4799.3,0.1631]
[1756078087464,4.02383527,4799.4,4799.3,2.24673719]
[1756078087790,0.44783527,4799.4,4799.3,2.24673719]
[1756078088094,4.02383527,4799.4,4799.3,0.1631]
[1756078088589,3.576,4799.4,4799.3,0.1631]
[1756078088982,3.576,4799.4,4799.3,2.24673719]
[1756078089594,3.576,4799.4,4799.1,12.94088856]
[1756078089798,0.3102,4799.2,4798.2,3.576]
[1756078090012,0.3102,4799.2,4798.1,3.041]
[1756078090188,3.576,4799.1,4798.9,2.08377414]
[1756078090383,0.4415,4799.3,4798.9,2.08377414]
[1756078090583,0.4415,4799.3,4799.0,2.08376447]
[1756078090909,0.016,4799.5,4799.2,2.24677157]
[1756078091100,3.576,4799.4,4799.2,2.24677157]
[1756078091409,0.016,4799.5,4799.4,2.08359378]
[1756078091611,0.016,4799.5,4799.3,5.97467648]
[1756078091907,0.016,4799.5,4799.4,2.08359378]
[1756078092113,0.016,4799.5,4799.4,3.63687242]
[1756078093508,0.303,4799.5,4799.4,3.63687242]
[1756078093709,0.7476,4799.5,4799.3,5.97467648]
[1756078093913,0.104,4799.4,4799.3,5.97467648]
[1756078094096,0.8356,4799.4,4799.3,5.97467648]
[1756078096179,4.4116,4799.4,4799.3,5.97467648]
[1756078096608,3.967,4799.4,4799.3,5.97467648]
[1756078096916,0.104,4799.4,4799.3,5.97467648]
[1756078097206,3.575,4799.4,4799.3,8.05831367]
[1756078097779,3.575,4799.4,4799.3,5.97467648]
[1756078097979,3.862,4799.4,4799.3,5.97467648]
[1756078098210,4.3066,4799.4,4799.3,5.97467648]
[1756078100313,3.575,4799.4,4799.3,5.97467648]
[1756078101795,3.574,4799.4,4799.3,8.22141367]
[1756078102094,3.574,4799.4,4799.3,9.262321]
[1756078102612,0.016,4799.5,4799.4,2.08359378]
[1756078102918,0.7316,4799.4,4799.3,5.97467648]
[1756078103282,3.59,4799.5,4799.3,5.97467648]
[1756078103484,3.59,4799.5,4799.3,8.0583079]
[1756078104180,3.59,4799.5,4799.3,5.97467648]
[1756078104514,0.016,4799.5,4799.3,5.97467648]
[1756078104713,3.574,4799.4,4799.3,5.97467648]
[1756078105516,3.574,4799.4,4798.9,5.97467648]
[1756078105517,4.3056,4799.4,4798.9,5.97467648]
[1756078105681,0.4446,4799.3,4798.9,6.07867648]
[1756078105888,0.4446,4799.2,4798.9,6.07867648]
[1756078106088,0.4446,4799.2,4798.9,6.35758357]
[1756078106320,0.4446,4799.2,4798.9,8.44139253]
[1756078106684,3.574,4799.4,4799.0,2.08375862]
[1756078106903,3.59,4799.5,4799.3,2.24673249]
[1756078107106,3.59,4799.5,4799.4,5.97467648]
[1756078107694,0.016,4799.5,4799.4,5.97467648]
[1756078107894,0.016,4799.5,4799.4,6.13777648]
[1756078108346,0.46582532,4799.5,4799.4,5.97467648]
[1756078108494,1.19742532,4799.5,4799.4,5.97467648]
[1756078112362,0.46582532,4799.5,4799.4,5.97467648]
[1756078112850,1.30142532,4799.5,4799.0,5.97467648]
[1756078113037,0.44982532,4799.4,4799.0,6.28042148]
[1756078113234,0.44982532,4799.3,4799.1,2.08372403]
[1756078113437,0.7316,4799.2,4799.0,6.28042148]
[1756078113752,3.573,4799.4,4799.1,0.2671]
[1756078113954,0.016,4799.5,4799.4,2.08359378]
[1756078114121,0.016,4799.5,4799.4,5.81869378]
[1756078114321,0.016,4799.5,4799.4,5.92269378]
[1756078116931,0.104,4800.3,4799.4,5.92269378]
[1756078116932,0.002,4800.6,4799.7,0.66]
[1756078117151,0.002,4800.6,4800.5,5.97467648]
[1756078117351,0.002,4800.6,4800.5,9.81377648]
[1756078117715,0.002,4800.6,4800.5,11.73379282]
[1756078117920,0.002,4800.6,4800.5,11.89689282]